fUST/lending_fUST_20260404
["ID","MTS","AMOUNT","RATE_DAILY","PERIOD"]
[419666772,1775267447554,-2063.9,0.0002336,3]
[419666773,1775267447564,-1031.94,0.0002336,3]
[419666774,1775267447573,-515.98,0.0002336,3]
[419666775,1775267447583,-270.83333333,0.0002336,3]
[419666776,1775267447593,-277.17206935,0.00023382,2]
[419666777,1775267447603,-3108.9455517,0.00023393,2]
[419666778,1775267447614,-1078.8621686,0.00023393,2]
[419666779,1775267447626,-599.60298507,0.00023407,2]
[419666780,1775267447636,-603.40521111,0.00023407,2]
[419666781,1775267447646,-2398.4119403,0.00023407,2]
[419666782,1775267447655,-621.78829552,0.00023462,2]
[419666783,1775267447664,-644.79446246,0.00023517,2]
[419666784,1775267447674,-3296.78956997,0.00023543,2]
[419666785,1775267496380,150.4762182,0.000328,120]
[419666799,1775267620086,500.0,0.00034753,120]
[419666800,1775267634555,602.30556352,0.00034753,120]
[419666801,1775267644776,306.22173481,0.00034753,120]
[419666811,1775267854631,8888.8272066,0.00034765,120]
[419666812,1775267901465,11845.75,0.00034765,120]
[419666813,1775267913085,3000.0,0.00034765,120]
[419666814,1775267917637,3000.0,0.00034765,120]
[419666815,1775267919827,3000.0,0.00034765,120]
[419666816,1775267946731,364.38,0.00034765,120]
[419666819,1775268101011,-543.26676997,0.00013699,2]
[419666820,1775268101027,-456.73323003,0.00013699,2]
[419666853,1775268558529,159.45402519,0.00034764,120]
[419666868,1775268600673,152.91491149,0.00034764,120]
[419666869,1775268601227,278.95360117,0.00031,120]
[419666875,1775268609769,171.19587445,0.0003,120]
[419666879,1775268611797,151.49783112,0.00034764,120]
[419666884,1775268612613,21921.39359822,0.00034764,120]
[419666909,1775268617659,244.72192124,0.00034764,120]
[419666945,1775268631796,-340.08281845,0.0001,2]
[419666946,1775268631809,-75.48540435,0.000104,2]
[419666947,1775268631849,-6258.552836,0.000104,2]
[419666948,1775268631861,-2462.72918787,0.00013426,2]
[419666977,1775268638075,-800.0,0.00013426,2]
[419666978,1775268638129,-1000.0,0.00013426,2]
[419667019,1775268646356,-737.27081213,0.00013426,2]
[419667020,1775268646366,-300.0,0.00013598,2]
[419667021,1775268646375,-1000.0,0.00013699,2]
[419667022,1775268646384,-545.1086037,0.0001377,2]
[419667023,1775268646395,-533.40474955,0.0001377,2]
[419667024,1775268646405,-1200.0,0.00013869,2]
[419667025,1775268646414,-300.0,0.0001387,2]
[419667026,1775268646424,-300.0,0.0001387,2]
[419667027,1775268646433,-300.0,0.0001387,2]
[419667028,1775268646443,-300.0,0.0001387,2]
[419667029,1775268646452,-300.0,0.0001387,2]
[419667030,1775268646462,-300.0,0.0001387,2]
[419667031,1775268646471,-300.0,0.0001387,2]
[419667032,1775268646480,-300.0,0.0001387,2]
[419667033,1775268646489,-300.0,0.0001387,2]
[419667034,1775268646498,-300.0,0.0001387,2]
[419667035,1775268646509,-300.0,0.0001387,2]
[419667036,1775268646518,-300.0,0.0001387,2]
[419667037,1775268646527,-300.0,0.0001387,2]
[419667038,1775268646537,-300.0,0.0001387,2]
[419667039,1775268646546,-300.0,0.0001387,2]
[419667040,1775268646557,-600.0,0.00014146,2]
[419667041,1775268646567,-720.0,0.00015561,2]
[419667042,1775268646576,-501.09318382,0.00015667,2]
[419667043,1775268646586,-1078.51335325,0.00016074,2]
[419667044,1775268646598,-864.0,0.00017117,2]
[419667045,1775268646608,-1078.51335325,0.00018379,2]
[419667046,1775268646618,-1000.0,0.00018829,2]
[419667047,1775268646628,-1321.2307546,0.00019176,2]
[419667048,1775268646639,-1000.0,0.00019178,2]
[419667049,1775268646650,-1000.0,0.00019178,2]
[419667050,1775268646660,-1000.0,0.00019178,2]
[419667051,1775268646671,-1000.0,0.00019178,2]
[419667052,1775268646680,-1000.0,0.00019178,2]
[419667053,1775268646690,-1000.0,0.00019178,2]
[419667054,1775268646701,-1000.0,0.00019178,2]
[419667055,1775268646711,-302.63563782,0.00019195,2]
[419667056,1775268646721,-1511.19967329,0.00019206,2]
[419667057,1775268646733,-1137.29220699,0.00019617,2]
[419667058,1775268646742,-5838.83729131,0.00020217,2]
[419667059,1775268646752,-1000.0,0.000206,2]
[419667060,1775268646765,-1078.51335325,0.00020683,2]
[419667061,1775268646777,-1000.0,0.00020712,2]
[419667062,1775268646787,-244.0,0.00020712,2]
[419667063,1775268646797,-380.13948639,0.00020899,2]
[419667064,1775268646808,-2230.26403744,0.00020995,9]
[419667065,1775268646817,-432.64827701,0.00021065,2]
[419667066,1775268646826,-17409.3368032,0.00021999,2]
[419667067,1775268646836,-1000.0,0.00022783,10]
[419667068,1775268646848,-492.0,0.00022783,10]
[419667069,1775268646858,-173.981093,0.00022805,2]
[419667070,1775268646869,-599.60298507,0.00022824,2]
[419667071,1775268646878,-2398.4119403,0.00022824,2]
[419667072,1775268646890,-621.78829552,0.00022879,2]
[419667073,1775268646900,-500.0,0.00022879,2]
[419667074,1775268646910,-151.0,0.00022934,2]
[419667075,1775268646920,-151.0,0.00022934,2]
[419667076,1775268646931,-151.0,0.00022934,2]
[419667077,1775268646941,-151.0,0.00022934,2]
[419667078,1775268646951,-151.0,0.00022934,2]
[419667079,1775268646961,-644.79446246,0.00022934,2]
[419667080,1775268646971,-1078.51335325,0.00022987,2]
[419667081,1775268646980,-668.65185757,0.00022989,2]
[419667082,1775268646990,-270.83333333,0.00023,2]
[419667083,1775268646999,-693.3919763,0.00023044,2]
[419667084,1775268647009,-452.79075199,0.00023099,2]
[419667085,1775268647019,-500.0,0.00023153,2]
[419667086,1775268647028,-196.3059407,0.00023248,2]
[419667087,1775268647037,-183.941,0.0002336,3]
[419667088,1775268647047,-961.46669868,0.00023372,2]
[419667089,1775268647056,-500.0,0.00023427,2]
[419667090,1775268647065,-250.0,0.00023534,5]
[419667091,1775268647075,-151.0,0.00023543,3]
[419667092,1775268647086,-151.0,0.00023543,3]
[419667093,1775268647096,-151.0,0.00023543,3]
[419667094,1775268647107,-151.0,0.00023543,3]
[419667095,1775268647116,-151.0,0.00023543,3]
[419667096,1775268647126,-151.0,0.00023543,3]
[419667097,1775268647135,-151.0,0.00023543,3]
[419667098,1775268647145,-292.0,0.00023543,3]
[419667099,1775268647155,-509.35626948,0.00023701,2]
[419667100,1775268647164,-150.579,0.00023714,2]
[419667101,1775268647174,-150.194,0.00023714,2]
[419667102,1775268647182,-151.659,0.00023714,2]
[419667103,1775268647192,-939.10669,0.00023868,2]
[419667104,1775268647201,-939.10669,0.00023868,2]
[419667105,1775268647211,-939.10669,0.00023868,2]
[419667106,1775268647220,-939.10669,0.00023868,2]
[419667107,1775268647230,-225.438164,0.00023868,2]
[419667108,1775268647239,-225.438164,0.00023868,2]
[419667109,1775268647249,-225.438164,0.00023868,2]
[419667110,1775268647258,-225.438164,0.00023868,2]
[419667111,1775268647267,-151.0,0.00023868,2]
[419667112,1775268647276,-164.475508,0.00023868,2]
[419667113,1775268647286,-644.0,0.00023868,2]
[419667114,1775268647296,-1409.84,0.00023868,2]
[419667115,1775268647305,-2210.563,0.00023868,2]
[419667116,1775268647315,-160.0,0.00023902,3]
[419667117,1775268647324,-178.2523687,0.00023982,5]
[419667118,1775268647334,-924.89228766,0.00024,60]
[419667119,1775268647343,-5415.26871716,0.00024171,2]
[419667120,1775268647352,-396.0,0.000244,2]
[419667121,1775268647362,-151.0,0.000244,2]
[419667122,1775268647371,-151.0,0.000244,2]
[419667123,1775268647381,-151.0,0.000244,2]
[419667124,1775268647390,-151.0,0.000244,2]
[419667125,1775268647399,-1240.0,0.00024658,5]
[419667126,1775268647408,-151.0,0.00024658,2]
[419667127,1775268647418,-151.0,0.00024658,2]
[419667128,1775268647427,-15000.0,0.000248,2]
[419667129,1775268647437,-151.0,0.000248,2]
[419667130,1775268647446,-151.0,0.000248,2]
[419667131,1775268647456,-151.0,0.000248,2]
[419667132,1775268647465,-151.0,0.000248,2]
[419667133,1775268647474,-151.0,0.000248,2]
[419667134,1775268647483,-151.0,0.000248,2]
[419667135,1775268647492,-151.0,0.000248,2]
[419667136,1775268647501,-151.0,0.000248,2]
[419667137,1775268647510,-151.0,0.000248,2]
[419667138,1775268647519,-151.0,0.000248,2]
[419667139,1775268647528,-151.0,0.000248,2]
[419667140,1775268647538,-225.438164,0.000248,2]
[419667141,1775268647547,-225.438164,0.000248,2]
[419667142,1775268647556,-225.438164,0.000248,2]
[419667143,1775268647565,-225.438164,0.000248,2]
[419667144,1775268647574,-151.0,0.000248,2]
[419667145,1775268647584,-159.064182,0.000248,2]
[419667146,1775268647594,-152.27196,0.000248,2]
[419667147,1775268647603,-151.0,0.000248,2]
[419667148,1775268647612,-151.0,0.000248,2]
[419667149,1775268647622,-151.0,0.000248,2]
[419667150,1775268647631,-200.0,0.000248,2]
[419667151,1775268647640,-151.0,0.000248,2]
[419667152,1775268647649,-615.17135453,0.00024848,2]
[419667153,1775268647662,-1530.51635762,0.00024848,2]
[419667154,1775268647673,-1738.86039675,0.00024848,2]
[419667155,1775268647683,-939.10669,0.00024848,2]
[419667156,1775268647692,-939.10669,0.00024848,2]
[419667157,1775268647701,-939.10669,0.00024848,2]
[419667158,1775268647710,-939.10669,0.00024848,2]
[419667159,1775268647719,-1131.7,0.000249,2]
[419667160,1775268647728,-614.09497408,0.000249,2]
[419667161,1775268647737,-194.42414196,0.0002491,7]
[419667162,1775268647746,-150.29646568,0.0002491,7]
[419667163,1775268647756,-151.9700281,0.0002491,2]
[419667164,1775268647765,-217.785539,0.00024935,14]
[419667165,1775268647774,-361.211945,0.00024935,14]
[419667166,1775268647783,-614.09497408,0.0002499,2]
[419667167,1775268647792,-151.0,0.0002499,2]
[419667168,1775268647801,-151.0,0.0002499,2]
[419667169,1775268647811,-151.0,0.0002499,2]
[419667170,1775268647820,-151.0,0.0002499,2]
[419667171,1775268647829,-158.319367,0.00024999,2]
[419667172,1775268647838,-167.535027,0.00024999,2]
[419667173,1775268647848,-2155.67692108,0.00025,2]
[419667174,1775268647859,-7844.32307892,0.00025,2]
[419667175,1775268647868,-160.0,0.00025,14]
[419667176,1775268647878,-194.42414196,0.00025,7]
[419667177,1775268647887,-150.29646568,0.00025,7]
[419667178,1775268647896,-152.267443,0.00025,2]
[419667179,1775268647906,-151.0,0.00025,2]
[419667180,1775268647915,-151.0,0.00025,2]
[419667181,1775268647924,-200.0,0.00025,2]
[419667182,1775268647933,-151.0,0.00025,2]
[419667183,1775268647942,-151.0,0.00025,2]
[419667184,1775268647951,-163.137336,0.00025,2]
[419667185,1775268647960,-1000.0,0.00025061,10]
[419667186,1775268647970,-791.0,0.00025061,10]
[419667187,1775268647979,-153.241263,0.00025061,2]
[419667188,1775268647988,-10000.0,0.000251,2]
[419667189,1775268647998,-151.959432,0.000251,2]
[419667190,1775268648008,-151.0,0.000251,2]
[419667191,1775268648018,-151.0,0.000251,2]
[419667192,1775268648027,-151.673591,0.000251,2]
[419667193,1775268648036,-151.0,0.000251,2]
[419667194,1775268648046,-151.0,0.000251,2]
[419667195,1775268648055,-151.0,0.000251,2]
[419667196,1775268648065,-225.438164,0.000251,2]
[419667197,1775268648074,-225.438164,0.000251,2]
[419667198,1775268648084,-225.438164,0.000251,2]
[419667199,1775268648094,-225.438164,0.000251,2]
[419667200,1775268648103,-151.0,0.000251,2]
[419667201,1775268648112,-162.18891024,0.00025163,7]
[419667202,1775268648122,-10000.0,0.000252,2]
[419667203,1775268648132,-151.0,0.000252,2]
[419667204,1775268648142,-151.0,0.000252,2]
[419667205,1775268648151,-151.0,0.000252,2]
[419667206,1775268648161,-151.889147,0.000252,2]
[419667207,1775268648171,-151.0,0.000252,2]
[419667208,1775268648180,-939.10669,0.000252,2]
[419667209,1775268648190,-939.10669,0.000252,2]
[419667210,1775268648200,-939.10669,0.000252,2]
[419667211,1775268648211,-939.10669,0.000252,2]
[419667212,1775268648221,-151.0,0.000252,2]
[419667213,1775268648232,-151.0,0.000252,2]
[419667214,1775268648241,-151.0,0.000252,2]
[419667215,1775268648252,-151.0,0.000252,2]
[419667216,1775268648261,-151.0,0.000252,2]
[419667217,1775268648270,-151.0,0.000252,2]
[419667218,1775268648280,-151.0,0.00025259,2]
[419667219,1775268648290,-151.0,0.00025259,2]
[419667220,1775268648300,-160.0,0.00025272,4]
[419667221,1775268648310,-162.53528367,0.00025272,5]
[419667222,1775268648320,-614.09497408,0.0002529,2]
[419667223,1775268648329,-1078.51335325,0.00025291,2]
[419667224,1775268648339,-10000.0,0.000253,2]
[419667225,1775268648350,-151.0,0.000253,2]
[419667226,1775268648361,-151.0,0.000253,2]
[419667227,1775268648371,-225.438164,0.000253,2]
[419667228,1775268648381,-225.438164,0.000253,2]
[419667229,1775268648390,-225.438164,0.000253,2]
[419667230,1775268648400,-225.438164,0.000253,2]
[419667231,1775268648411,-151.0,0.000253,2]
[419667232,1775268648421,-3458.40818536,0.00025344,2]
[419667233,1775268648430,-316.46431148,0.00025344,3]
[419667234,1775268648439,-1249.87,0.00025401,2]
[419667235,1775268648448,-299.236288,0.00025434,2]
[419667236,1775268648457,-151.0,0.00025434,2]
[419667237,1775268648467,-151.0,0.00025434,2]
[419667238,1775268648476,-151.0,0.00025434,2]
[419667239,1775268648485,-151.0,0.00025434,2]
[419667240,1775268648494,-939.10669,0.00025434,2]
[419667241,1775268648503,-939.10669,0.00025434,2]
[419667242,1775268648513,-939.10669,0.00025434,2]
[419667243,1775268648522,-939.10669,0.00025434,2]
[419667244,1775268648531,-151.0,0.00025434,2]
[419667245,1775268648541,-151.0,0.00025434,2]
[419667246,1775268648550,-151.0,0.00025434,2]
[419667247,1775268648559,-151.0,0.00025434,2]
[419667248,1775268648568,-151.0,0.00025434,2]
[419667249,1775268648577,-186.7975764,0.00025434,2]
[419667250,1775268648586,-10439.6145594,0.00025434,2]
[419667251,1775268648595,-151.0,0.00025443,2]
[419667252,1775268648604,-151.0,0.00025443,2]
[419667253,1775268648612,-321972.48945849,0.00025444,2]
[419667256,1775268713548,169.148565,0.0002842,120]
[419667257,1775268873171,500.0,0.00034765,120]
[419667259,1775269145392,523.0,0.00034748,120]
[419667267,1775269418971,3619.711308,0.0002744,120]
[419667268,1775269438408,500.0,0.00034748,120]
[419667288,1775269657796,1170.7033,0.0002744,120]
[419667348,1775269831992,-5000.0,0.00013562,2]
[419667350,1775269832002,-156.225,0.00013699,2]
[419667352,1775269832012,-1000.0,0.00013699,2]
[419667354,1775269832021,-300.0,0.00018999,2]
[419667355,1775269832031,-300.0,0.00018999,2]
[419667357,1775269832040,-300.0,0.00018999,2]
[419667358,1775269832050,-1200.0,0.00018999,2]
[419667359,1775269832059,-9646.99507088,0.00019,2]
[419667360,1775269832068,-1000.0,0.00019178,2]
[419667361,1775269832078,-1000.0,0.00019178,2]
[419667363,1775269832087,-1000.0,0.00019178,2]
[419667365,1775269832096,-1000.0,0.00019178,2]
[419667367,1775269832106,-1000.0,0.00019178,2]
[419667369,1775269832115,-1000.0,0.00019178,7]
[419667371,1775269832125,-1000.0,0.00019178,7]
[419667373,1775269832134,-1000.0,0.00019178,7]
[419667374,1775269832143,-1000.0,0.00019178,7]
[419667375,1775269832152,-1000.0,0.00019178,7]
[419667376,1775269832161,-707.98641689,0.00019178,7]
[419667378,1775269832170,-508.13502662,0.000192,2]
[419667380,1775269832179,-600.0,0.00019561,2]
[419667382,1775269832188,-1211.0,0.0002081,2]
[419667384,1775269832198,-720.0,0.00021517,10]
[419667385,1775269832207,-1624.3287966,0.00022199,2]
[419667387,1775269832217,-626.71292092,0.00022478,2]
[419667389,1775269832226,-2398.4119403,0.00022478,2]
[419667391,1775269832235,-270.83333333,0.00023,2]
[419667392,1775269832245,-2487.15318209,0.00023026,2]
[419667393,1775269832253,-368.22015771,0.00023574,2]
[419667394,1775269832263,-864.0,0.00023668,10]
[419667395,1775269832272,-453.697,0.00024213,2]
[419667396,1775269832282,-86.87925323,0.00024213,2]
[419667397,1775269832294,-447.90800031,0.00024213,2]
[419667495,1775269843437,-256.2,0.0002397,2]
[419667503,1775269846565,-4310.17736062,0.0002397,2]
[419667511,1775269919567,479.13981,0.00028185,120]
[419667512,1775269928396,1000.0,0.00013699,2]
[419667518,1775270012604,388.363295,0.0002744,120]
[419667519,1775270032763,500.0,0.00034749,120]
[419667532,1775270105033,357.000898,0.0002746,120]
[419667539,1775270146309,178.500449,0.00027597,120]
[419667623,1775270194653,1500.0,0.000309,120]
[419667624,1775270195070,1500.0,0.000319,120]
[419667625,1775270195614,328.82013,0.00027597,120]
[419667631,1775270244245,164.410065,0.0002744,120]
[419667692,1775270465055,500.0,0.00034753,120]
[419667693,1775270465279,500.0,0.00034753,120]
[419667694,1775270465512,500.0,0.00034753,120]
[419667695,1775270465760,500.0,0.00034753,120]
[419667696,1775270466031,500.0,0.00034753,120]
[419667697,1775270466270,500.0,0.00034753,120]
[419667698,1775270466509,467.78443431,0.00034753,120]
[419667800,1775271032292,-335.005,0.00013699,2]
[419667801,1775271032303,-664.995,0.00013699,2]
[419667802,1775271032313,-24.29656332,0.00014175,2]
[419668346,1775271038355,-796.092072,0.00014175,2]
[419668348,1775271038365,-75.97157979,0.00014275,2]
[419668353,1775271038408,-1842.89747467,0.00014275,2]
[419668355,1775271038418,-3017.34947359,0.00014475,2]
[419668357,1775271038427,-300.0,0.00017929,2]
[419668360,1775271038437,-300.0,0.00017929,2]
[419668362,1775271038446,-300.0,0.00017929,2]
[419668364,1775271038455,-1200.0,0.00017929,2]
[419668366,1775271038465,-4940.49287056,0.00017931,2]
[419668367,1775271038475,-300.0,0.0002,3]
[419668370,1775271038485,-1000.0,0.00020322,2]
[419668372,1775271038494,-164.3138937,0.0002053,2]
[419668374,1775271038504,-984.3,0.000209,2]
[419668376,1775271038513,-984.3,0.000219,2]
[419668378,1775271038522,-170.5572553,0.00022004,5]
[419668380,1775271038531,-984.3,0.000229,2]
[419668382,1775271038541,-6355.4898077,0.00023363,2]
[419668384,1775271038550,-270.83333333,0.00023704,2]
[419668386,1775271038559,-984.3,0.000239,2]
[419668388,1775271038568,-183.941,0.000239,5]
[419668390,1775271038578,-196.3059407,0.00024051,2]
[419668392,1775271038587,-2204.0,0.0002409,2]
[419668394,1775271038597,-644.0,0.0002409,2]
[419668396,1775271038606,-150.226,0.0002409,2]
[419668398,1775271038615,-150.436,0.0002409,2]
[419668400,1775271038625,-790.0,0.000246,2]
[419668402,1775271038635,-1078.7863954,0.0002476,2]
[419668404,1775271038644,-451.7299622,0.0002476,2]
[419668406,1775271038654,-5654.6586184,0.0002476,2]
[419668408,1775271038663,-277.0,0.0002478,5]
[419668409,1775271038673,-984.3,0.000249,2]
[419668411,1775271038682,-3112.56736686,0.000249,2]
[419668413,1775271038692,-598.17,0.00024933,3]
[419668415,1775271038701,-500.0,0.00024942,2]
[419668417,1775271038711,-427.31547775,0.00024942,2]
[419668419,1775271038720,-576.93076502,0.00024942,2]
[419668421,1775271038730,-500.0,0.00024942,2]
[419668424,1775271038740,-500.0,0.00024942,2]
[419668426,1775271038750,-500.0,0.00024942,2]
[419668428,1775271038760,-500.0,0.00024942,2]
[419668430,1775271038769,-500.0,0.00024942,2]
[419668432,1775271038779,-500.0,0.00024942,2]
[419668434,1775271038789,-511.35930869,0.00024942,2]
[419668436,1775271038798,-500.0,0.00024942,2]
[419668438,1775271038807,-500.0,0.00024942,2]
[419668440,1775271038816,-302.73262547,0.00024942,2]
[419668442,1775271038825,-500.0,0.00024942,2]
[419668444,1775271038834,-500.0,0.00024942,2]
[419668446,1775271038844,-500.0,0.00024942,2]
[419668448,1775271038854,-466.7754276,0.00024942,2]
[419668450,1775271038863,-51162.63683043,0.00024943,2]
[419668452,1775271038875,-17358.98235561,0.00024943,2]
[419668454,1775271038887,-3673.64304261,0.00024943,2]
[419668456,1775271038898,-2866.49295455,0.00024943,2]
[419668584,1775271041287,-1202.22657072,0.00024943,2]
[419668585,1775271041298,-1175.66510949,0.00024943,2]
[419668586,1775271041309,-396.27900709,0.00024943,2]
[419668614,1775271043583,-8378.62888832,0.00024943,2]
[419668615,1775271043596,-8721.16245781,0.00024943,2]
[419668618,1775271043685,-336.33341679,0.00024943,2]
[419668634,1775271046738,-7637.56141585,0.00024943,2]
[419668635,1775271046750,-2246.05718898,0.00024943,2]
[419668637,1775271227037,162.019778,0.00028185,120]
[419668642,1775271400764,254.0,0.0003475,120]
[419668643,1775271401175,254.0,0.0003475,120]
[419668644,1775271480400,1000.0,0.000326,120]
[419668645,1775271517125,201.0,0.0003475,120]
[419668646,1775271680619,-300.0,0.00012999,2]
[419668647,1775271680646,-300.0,0.00012999,2]
[419668648,1775271680673,-300.0,0.00012999,2]
[419668649,1775271925169,500.0,0.0003475,120]
[419668650,1775271925424,500.0,0.0003475,120]
[419668651,1775271925785,255.54,0.0003475,120]
[419668652,1775271938283,-414.48375,9.899e-05,2]
[419668653,1775272013990,20000.0,0.00032876,120]
[419668678,1775272071521,203.0,0.00032877,120]
[419668733,1775272232564,-467.52642622,0.0001,2]
[419668735,1775272232577,-430.27401933,0.0001,2]
[419668737,1775272232586,-198.16663372,0.0001,2]
[419668739,1775272232596,-282.71763686,0.000104,2]
[419668741,1775272232606,-785.0,0.00012999,2]
[419668743,1775272232617,-842.53034928,0.00013,2]
[419668748,1775272232668,-1857.69813109,0.00013,2]
[419668798,1775272238620,-12604.45151963,0.00013,2]
[419668800,1775272238629,-500.0,0.00013,2]
[419668802,1775272238639,-1000.0,0.00013699,2]
[419668804,1775272238648,-281.64,0.00023262,2]
[419668807,1775272238658,-2204.0,0.00023262,2]
[419668809,1775272238667,-270.83333333,0.00023833,2]
[419668811,1775272238676,-150.1,0.00024162,20]
[419668813,1775272238685,-1405.0,0.00024163,2]
[419668815,1775272238694,-269.62833833,0.00024642,2]
[419668817,1775272238704,-742.70799804,0.000247,53]
[419668819,1775272238713,-697.85,0.00024732,3]
[419668821,1775272238722,-348.93,0.00024732,3]
[419668823,1775272238731,-174.46,0.00024732,3]
[419668825,1775272238740,-523.41,0.00024732,3]
[419668827,1775272238749,-201.64682125,0.00024741,2]
[419668829,1775272238759,-11671.03380934,0.00024742,2]
[419668831,1775272238770,-2118.66704675,0.00024742,2]
[419668833,1775272238782,-3139.97818459,0.00024742,2]
[419669192,1775272246965,-1901.41835745,0.00024742,2]
[419669193,1775272288694,504.23396755,0.00027397,120]
[419669194,1775272375775,500.0,0.0003475,120]
[419669195,1775272375997,500.0,0.0003475,120]
[419669196,1775272376221,500.0,0.0003475,120]
[419669197,1775272376444,500.0,0.0003475,120]
[419669198,1775272376665,500.0,0.0003475,120]
[419669199,1775272377082,500.0,0.0003475,120]
[419669200,1775272377317,500.0,0.0003475,120]
[419669201,1775272377592,500.0,0.0003475,120]
[419669202,1775272377848,500.0,0.0003475,120]
[419669203,1775272378101,500.0,0.0003475,120]
[419669204,1775272378336,500.0,0.0003475,120]
[419669205,1775272378564,500.0,0.0003475,120]
[419669206,1775272378786,500.0,0.0003475,120]
[419669207,1775272379047,500.0,0.0003475,120]
[419669208,1775272379273,216.003439,0.0003475,120]
[419669233,1775273433661,-393.40756367,0.00013699,2]
[419669240,1775273433716,-606.59243633,0.00013699,2]
[419669243,1775273433727,-1000.0,0.00022636,30]
[419669246,1775273433738,-351.04180879,0.00023124,2]
[419669249,1775273433751,-300.0,0.00023204,2]
[419669251,1775273433762,-300.0,0.00023204,2]
[419669253,1775273433773,-300.0,0.00023204,2]
[419669255,1775273433785,-1200.0,0.00023205,2]
[419669257,1775273433795,-2302.75368348,0.00023207,2]
[419669260,1775273433808,-19901.58007419,0.00023207,2]
[419669829,1775273446956,-856.14460223,0.00023207,2]
[419669830,1775273446966,-2973.69789986,0.00023207,2]
[419669831,1775273447278,-873.35134153,0.00023207,2]
[419669835,1775273478126,481.0,0.00034749,120]
[419669836,1775273478158,895.40365211,0.00034749,120]
[419669838,1775273674599,2000.0,0.00034749,120]
[419669839,1775273681781,2000.0,0.00034749,120]
[419669840,1775273684106,215.70392544,0.00034749,120]
[419669841,1775273684408,215.70392544,0.00034749,120]
[419669842,1775273684719,215.70392544,0.00034749,120]
[419669843,1775273685000,215.70392544,0.00034749,120]
[419669844,1775273685339,215.70392544,0.00034749,120]
[419669845,1775273685693,215.70392544,0.00034749,120]
[419669846,1775273686031,215.70392544,0.00034749,120]
[419669847,1775273686321,215.70392544,0.00034749,120]
[419669848,1775273686636,215.70392544,0.00034749,120]
[419669849,1775273687232,215.70392544,0.00034749,120]
[419669850,1775273687528,215.70392544,0.00034749,120]
[419669851,1775273687814,215.70392544,0.00034749,120]
[419669852,1775273688108,215.70392544,0.00034749,120]
[419669853,1775273688429,215.70392544,0.00034749,120]
[419669854,1775273690608,2000.0,0.00034749,120]
[419669855,1775273698285,2000.0,0.00034749,120]
[419669856,1775273704880,2000.0,0.00034749,120]
[419669880,1775274095081,151.95262521,0.00034754,120]
[419669884,1775274364753,2000.0,0.00034754,120]
[419669885,1775274365360,2000.0,0.00034754,120]
[419669886,1775274366025,2000.0,0.00034754,120]
[419669887,1775274366677,2000.0,0.00034754,120]
[419669888,1775274367363,2000.0,0.00034754,120]
[419669905,1775274615118,1000.0,0.00034754,120]
[419669906,1775274615956,1000.0,0.00034754,120]
[419669907,1775274616626,1000.0,0.00034754,120]
[419669908,1775274617336,1000.0,0.00034754,120]
[419669909,1775274617963,1000.0,0.00034754,120]
[419669910,1775274618655,1000.0,0.00034754,120]
[419669911,1775274619256,1000.0,0.00034754,120]
[419669917,1775274620093,1000.0,0.00034754,120]